[Event "*** Titled Tuesday Blitz"]
[Site "Chess.com"]
[Date "2019.02.05"]
[Round "7"]
[White "mishanick"]
[Black "Peng_Li-Min"]
[Result "0-1"]
[WhiteElo "2986"]
[BlackElo "2690"]
[TimeControl "180+2"]
[EndTime "14:43:17 PST"]
[Termination "Peng_Li-Min won by checkmate"]

1. d4 {[%clk 0:03:01.9]} 1... Nf6 {[%clk 0:03:00.9]} 2. c4 {[%clk 0:03:00.4]}
2... g6 {[%clk 0:03:02.4]} 3. Nc3 {[%clk 0:02:59.5]} 3... d5 {[%clk 0:03:03.9]}
4. cxd5 {[%clk 0:03:01.3]} 4... Nxd5 {[%clk 0:03:04.6]} 5. e4 {[%clk 0:03:02.9]}
5... Nxc3 {[%clk 0:03:05.8]} 6. bxc3 {[%clk 0:03:04.8]} 6... Bg7 {[%clk
0:03:07.6]} 7. Nf3 {[%clk 0:03:06.4]} 7... c5 {[%clk 0:03:07.9]} 8. Rb1 {[%clk
0:03:07.9]} 8... O-O {[%clk 0:03:05.5]} 9. Be2 {[%clk 0:03:08.6]} 9... Nc6
{[%clk 0:03:05.2]} 10. d5 {[%clk 0:03:04.5]} 10... Ne5 {[%clk 0:03:04.3]} 11.
Nxe5 {[%clk 0:03:05.5]} 11... Bxe5 {[%clk 0:03:05.8]} 12. Qd2 {[%clk 0:03:05.6]}
12... e6 {[%clk 0:03:06.7]} 13. f4 {[%clk 0:03:04.6]} 13... Bg7 {[%clk
0:03:08.2]} 14. O-O {[%clk 0:03:02.6]} 14... exd5 {[%clk 0:03:08.1]} 15. exd5
{[%clk 0:03:04]} 15... b6 {[%clk 0:03:04.2]} 16. c4 {[%clk 0:03:03.6]} 16... Bf5
{[%clk 0:02:56.7]} 17. Bd3 {[%clk 0:03:00.5]} 17... Bd4+ {[%clk 0:02:51.3]} 18.
Kh1 {[%clk 0:03:00.9]} 18... Qf6 {[%clk 0:02:53.2]} 19. Qc2 {[%clk 0:03:00.4]}
19... Rfe8 {[%clk 0:02:18.9]} 20. Rb3 {[%clk 0:02:53.6]} 20... Bxd3 {[%clk
0:02:15.8]} 21. Qxd3 {[%clk 0:02:50.6]} 21... Qf5 {[%clk 0:02:16.9]} 22. Qxf5
{[%clk 0:02:46.2]} 22... gxf5 {[%clk 0:02:16.2]} 23. Rg3+ {[%clk 0:02:46.9]}
23... Kf8 {[%clk 0:02:16.5]} 24. Rh3 {[%clk 0:02:17.7]} 24... Kg7 {[%clk
0:02:07.1]} 25. Rh5 {[%clk 0:02:18.3]} 25... Kg6 {[%clk 0:02:03.6]} 26. Rg5+
{[%clk 0:02:19.1]} 26... Kf6 {[%clk 0:02:05]} 27. Bd2 {[%clk 0:02:20.4]} 27...
h6 {[%clk 0:02:01.4]} 28. Rg3 {[%clk 0:02:19.2]} 28... Re2 {[%clk 0:02:02.9]}
29. Rd3 {[%clk 0:02:20]} 29... Rg8 {[%clk 0:02:01.2]} 30. g3 {[%clk 0:02:15.4]}
30... h5 {[%clk 0:02:00.2]} 31. Re1 {[%clk 0:02:11.1]} 31... Rge8 {[%clk
0:01:51.4]} 32. Rf1 {[%clk 0:02:02.6]} 32... Rg8 {[%clk 0:01:51]} 33. Re1 {[%clk
0:02:01.2]} 33... Rge8 {[%clk 0:01:51.4]} 34. Rf1 {[%clk 0:01:16.8]} 34... h4
{[%clk 0:01:40.7]} 35. gxh4 {[%clk 0:01:14.8]} 35... Rg8 {[%clk 0:01:41.8]} 36.
Be1 {[%clk 0:01:09.9]} 36... Rgg2 {[%clk 0:01:33.5]} 37. Bg3 {[%clk 0:01:09.9]}
37... Rxa2 {[%clk 0:01:31.2]} 38. h5 {[%clk 0:01:10.8]} 38... Rge2 {[%clk
0:01:14.2]} 39. d6 {[%clk 0:01:01.8]} 39... Ke6 {[%clk 0:01:11]} 40. h6 {[%clk
0:01:02.7]} 40... Kxd6 {[%clk 0:00:48.9]} 41. Bf2 {[%clk 0:00:58.1]} 41... Re8
{[%clk 0:00:50.2]} 42. Bxd4 {[%clk 0:00:55.3]} 42... cxd4 {[%clk 0:00:52.1]} 43.
Rxd4+ {[%clk 0:00:56.8]} 43... Kc5 {[%clk 0:00:52.1]} 44. Rd5+ {[%clk
0:00:57.9]} 44... Kxc4 {[%clk 0:00:51.4]} 45. Rxf5 {[%clk 0:00:59.5]} 45... Rh8
{[%clk 0:00:51]} 46. Rh5 {[%clk 0:00:55.5]} 46... b5 {[%clk 0:00:49.4]} 47. Rc1+
{[%clk 0:00:52.5]} 47... Kd3 {[%clk 0:00:47.5]} 48. Rb1 {[%clk 0:00:51.2]} 48...
a6 {[%clk 0:00:38.6]} 49. h7 {[%clk 0:00:52.2]} 49... Rc2 {[%clk 0:00:39.3]} 50.
Rg1 {[%clk 0:00:53]} 50... Rcc8 {[%clk 0:00:37.3]} 51. Rg7 {[%clk 0:00:53.8]}
51... b4 {[%clk 0:00:36.2]} 52. Rxf7 {[%clk 0:00:53.1]} 52... Rb8 {[%clk
0:00:37.7]} 53. Rd7+ {[%clk 0:00:51.7]} 53... Kc4 {[%clk 0:00:39.2]} 54. Rc7+
{[%clk 0:00:52.6]} 54... Kd4 {[%clk 0:00:40]} 55. Rd7+ {[%clk 0:00:51.4]} 55...
Kc4 {[%clk 0:00:41.3]} 56. Rc7+ {[%clk 0:00:37.7]} 56... Kd4 {[%clk 0:00:41.7]}
57. f5 {[%clk 0:00:12.9]} 57... b3 {[%clk 0:00:38]} 58. Rd7+ {[%clk 0:00:13.9]}
58... Ke4 {[%clk 0:00:36]} 59. Re7+ {[%clk 0:00:13.2]} 59... Kd4 {[%clk
0:00:32.9]} 60. Rh4+ {[%clk 0:00:12.7]} 60... Kc5 {[%clk 0:00:31.3]} 61. Re1
{[%clk 0:00:13.2]} 61... Rb7 {[%clk 0:00:27]} 62. Rb1 {[%clk 0:00:13.3]} 62...
a5 {[%clk 0:00:28.4]} 63. Ra4 {[%clk 0:00:13.4]} 63... Rb5 {[%clk 0:00:27.2]}
64. Rh4 {[%clk 0:00:12.9]} 64... Rb4 {[%clk 0:00:26.4]} 65. Rh5 {[%clk
0:00:13.9]} 65... Kd6 {[%clk 0:00:27.3]} 66. f6 {[%clk 0:00:15.1]} 66... Ke6
{[%clk 0:00:27.6]} 67. Rf1 {[%clk 0:00:15.9]} 67... b2 {[%clk 0:00:24.8]} 68.
Rb1 {[%clk 0:00:16.4]} 68... a4 {[%clk 0:00:25.4]} 69. Rh6 {[%clk 0:00:15.4]}
69... a3 {[%clk 0:00:23.8]} 70. f7+ {[%clk 0:00:16.6]} 70... Kxf7 {[%clk
0:00:25]} 71. Ra6 {[%clk 0:00:18.2]} 71... Rb3 {[%clk 0:00:25.7]} 72. Ra7+
{[%clk 0:00:19.4]} 72... Kg6 {[%clk 0:00:26.2]} 73. Rg1+ {[%clk 0:00:19.8]}
73... Kh6 {[%clk 0:00:27.3]} 74. Ra6+ {[%clk 0:00:20.8]} 74... Kh5 {[%clk
0:00:26.1]} 75. Ra5+ {[%clk 0:00:20.1]} 75... Kh4 {[%clk 0:00:27.1]} 76. Ra4+
{[%clk 0:00:16.6]} 76... Kh3 {[%clk 0:00:27.9]} 77. Rb1 {[%clk 0:00:16.5]} 77...
Rc3 {[%clk 0:00:23.7]} 78. Rg1 {[%clk 0:00:14.2]} 78... Rxh7 {[%clk 0:00:23]}
79. Ra8 {[%clk 0:00:14.5]} 79... a2 {[%clk 0:00:19]} 80. Rxa2 {[%clk 0:00:15.1]}
80... Rb3 {[%clk 0:00:20.6]} 81. Rb1 {[%clk 0:00:15.4]} 81... Rc7 {[%clk
0:00:20.6]} 82. Raxb2 {[%clk 0:00:14.1]} 82... Rxb2 {[%clk 0:00:21.4]} 83. Ra1
{[%clk 0:00:15.6]} 83... Rbc2 {[%clk 0:00:21.2]} 84. Ra3+ {[%clk 0:00:16.5]}
84... R7c3 {[%clk 0:00:21.6]} 85. Ra8 {[%clk 0:00:14.7]} 85... Rc1# {[%clk
0:00:22.5]} 0-1

[Event "*** Titled Tuesday Blitz"]
[Site "Chess.com"]
[Date "2019.02.05"]
[Round "7"]
[White "arctic_t00"]
[Black "ZeroRealtorFade"]
[Result "1-0"]
[WhiteElo "2354"]
[BlackElo "2245"]
[TimeControl "180+2"]
[EndTime "14:43:20 PST"]
[Termination "arctic_t00 won by resignation"]

1. d4 {[%clk 0:02:59.6]} 1... Nf6 {[%clk 0:03:00.9]} 2. Nf3 {[%clk 0:02:58.6]}
2... c5 {[%clk 0:03:02.1]} 3. d5 {[%clk 0:02:59.1]} 3... d6 {[%clk 0:03:02.4]}
4. Nc3 {[%clk 0:02:59.9]} 4... g6 {[%clk 0:03:03.7]} 5. e4 {[%clk 0:03:01.2]}
5... Bg7 {[%clk 0:03:05.5]} 6. Bc4 {[%clk 0:02:59.9]} 6... O-O {[%clk
0:03:06.5]} 7. O-O {[%clk 0:03:00.3]} 7... a6 {[%clk 0:03:07.3]} 8. a4 {[%clk
0:03:00.9]} 8... Nbd7 {[%clk 0:03:08.5]} 9. h3 {[%clk 0:02:58.7]} 9... Rb8
{[%clk 0:03:06.4]} 10. Re1 {[%clk 0:02:51.3]} 10... Nb6 {[%clk 0:03:06.8]} 11.
Bf1 {[%clk 0:02:49.3]} 11... Na8 {[%clk 0:03:03.7]} 12. Bf4 {[%clk 0:02:46.7]}
12... Nd7 {[%clk 0:02:54.9]} 13. Qd2 {[%clk 0:02:40.7]} 13... Nc7 {[%clk
0:02:52.9]} 14. a5 {[%clk 0:02:34.9]} 14... b5 {[%clk 0:02:49.6]} 15. axb6
{[%clk 0:02:36.3]} 15... Rxb6 {[%clk 0:02:50.5]} 16. Ra2 {[%clk 0:02:34.6]}
16... Nb5 {[%clk 0:02:47.3]} 17. Nxb5 {[%clk 0:02:29.2]} 17... axb5 {[%clk
0:02:47.8]} 18. Bh6 {[%clk 0:02:28.4]} 18... Nf6 {[%clk 0:02:33]} 19. b4 {[%clk
0:02:21.3]} 19... Qc7 {[%clk 0:02:24.1]} 20. Bxg7 {[%clk 0:02:19.6]} 20... Kxg7
{[%clk 0:02:23.7]} 21. Rb2 {[%clk 0:01:58.2]} 21... Bd7 {[%clk 0:02:20.4]} 22.
Qe3 {[%clk 0:01:40.3]} 22... Ra8 {[%clk 0:02:15.7]} 23. Nd2 {[%clk 0:01:31.7]}
23... Ra4 {[%clk 0:01:57.2]} 24. c3 {[%clk 0:01:26.1]} 24... Ra3 {[%clk
0:01:48.2]} 25. Qf4 {[%clk 0:01:14.4]} 25... Rxc3 {[%clk 0:01:27.4]} 26. g4
{[%clk 0:01:09.8]} 26... cxb4 {[%clk 0:01:15.3]} 27. Rxb4 {[%clk 0:00:45.7]}
27... Qc5 {[%clk 0:01:12.8]} 28. Reb1 {[%clk 0:00:39.9]} 28... Rc1 {[%clk
0:00:35.3]} 29. Nf3 {[%clk 0:00:36.7]} 29... Rxb1 {[%clk 0:00:32.2]} 30. Rxb1
{[%clk 0:00:38.6]} 30... b4 {[%clk 0:00:28.9]} 31. g5 {[%clk 0:00:25]} 31... Nh5
{[%clk 0:00:27.2]} 32. Qd2 {[%clk 0:00:25.7]} 32... Kg8 {[%clk 0:00:17.9]} 33.
Nd4 {[%clk 0:00:26.3]} 33... Rb8 {[%clk 0:00:07.2]} 34. Rc1 {[%clk 0:00:26.8]}
34... Qb6 {[%clk 0:00:05.5]} 35. Nc6 {[%clk 0:00:22.4]} 35... Bxc6 {[%clk
0:00:04.3]} 36. dxc6 {[%clk 0:00:22.5]} 36... Rc8 {[%clk 0:00:03.8]} 37. Be2
{[%clk 0:00:08.9]} 37... Ng7 {[%clk 0:00:04.4]} 38. Qd5 {[%clk 0:00:08]} 38...
Ne6 {[%clk 0:00:04.2]} 39. Bg4 {[%clk 0:00:08.5]} 39... Kg7 {[%clk 0:00:03.2]}
40. Bxe6 {[%clk 0:00:09.3]} 40... fxe6 {[%clk 0:00:04.9]} 41. Qxe6 {[%clk
0:00:10.9]} 41... Qc7 {[%clk 0:00:04.2]} 42. f4 {[%clk 0:00:09.8]} 42... Ra8
{[%clk 0:00:03.9]} 43. Rb1 {[%clk 0:00:10.6]} 43... Ra3 {[%clk 0:00:04.6]} 44.
f5 {[%clk 0:00:11.1]} 44... Qa7+ {[%clk 0:00:05.5]} 45. Kg2 {[%clk 0:00:09]}
45... Ra2+ {[%clk 0:00:06]} 46. Kh1 {[%clk 0:00:09.9]} 46... Ra3 {[%clk
0:00:06.4]} 47. f6+ {[%clk 0:00:10.3]} 47... exf6 {[%clk 0:00:07]} 48. Qxf6+
{[%clk 0:00:09.9]} 48... Kg8 {[%clk 0:00:07.5]} 49. Qd8+ {[%clk 0:00:10.9]}
49... Kg7 {[%clk 0:00:08.1]} 50. Qd7+ {[%clk 0:00:12]} 50... Qxd7 {[%clk
0:00:08.4]} 51. cxd7 {[%clk 0:00:13.9]} 51... Ra8 {[%clk 0:00:08.7]} 52. Rxb4
{[%clk 0:00:15.4]} 52... Kf7 {[%clk 0:00:09.6]} 53. Rc4 {[%clk 0:00:14.8]} 53...
Rd8 {[%clk 0:00:09.5]} 54. Rc7 {[%clk 0:00:15]} 54... Ke7 {[%clk 0:00:10.3]} 55.
Kg2 {[%clk 0:00:16.2]} 55... Rxd7 {[%clk 0:00:11.6]} 56. Rc8 {[%clk 0:00:15]}
56... Ra7 {[%clk 0:00:06.9]} 57. Kf3 {[%clk 0:00:16.2]} 57... Ke6 {[%clk
0:00:06.6]} 58. Re8+ {[%clk 0:00:13.6]} 58... Kf7 {[%clk 0:00:07.4]} 59. Rh8
{[%clk 0:00:14.2]} 59... Kg7 {[%clk 0:00:08.2]} 60. Rd8 {[%clk 0:00:15.6]} 60...
Ra3+ {[%clk 0:00:08.9]} 61. Kg4 {[%clk 0:00:16.6]} 61... Ra6 {[%clk 0:00:06.6]}
62. Rd7+ {[%clk 0:00:16.6]} 62... Kg8 {[%clk 0:00:07.5]} 63. h4 {[%clk 0:00:18]}
63... Rb6 {[%clk 0:00:08.6]} 64. Kf4 {[%clk 0:00:18.9]} 64... Ra6 {[%clk
0:00:09]} 65. Ke3 {[%clk 0:00:20.2]} 65... Ra3+ {[%clk 0:00:09.3]} 66. Kd4
{[%clk 0:00:21.5]} 66... Rh3 {[%clk 0:00:09.7]} 67. Rxd6 {[%clk 0:00:22.1]}
67... Rxh4 {[%clk 0:00:10.8]} 68. Ke5 {[%clk 0:00:19.8]} 68... Rg4 {[%clk
0:00:10.7]} 69. Kf6 {[%clk 0:00:13.4]} 69... Rf4+ {[%clk 0:00:11.5]} 70. Ke5
{[%clk 0:00:14.8]} 70... Rg4 {[%clk 0:00:12.1]} 71. Kf6 {[%clk 0:00:09.6]} 71...
Rf4+ {[%clk 0:00:13.1]} 72. Ke5 {[%clk 0:00:10.9]} 72... Rf7 {[%clk 0:00:13]}
73. Rd8+ {[%clk 0:00:11.7]} 73... Kg7 {[%clk 0:00:14]} 74. Ke6 {[%clk
0:00:13.2]} 74... Ra7 {[%clk 0:00:13.7]} 75. e5 {[%clk 0:00:13.1]} 75... h6
{[%clk 0:00:14.3]} 76. Rd7+ {[%clk 0:00:07.6]} 76... Rxd7 {[%clk 0:00:12.6]} 77.
Kxd7 {[%clk 0:00:09.5]} 77... hxg5 {[%clk 0:00:13.9]} 78. e6 {[%clk 0:00:11]}
1-0

[Event "*** Titled Tuesday Blitz"]
[Site "Chess.com"]
[Date "2019.02.05"]
[Round "7"]
[White "VeraNebolsina"]
[Black "KRASAVCHIK2002"]
[Result "1/2-1/2"]
[WhiteElo "2373"]
[BlackElo "2286"]
[TimeControl "180+2"]
[EndTime "14:43:23 PST"]
[Termination "Game drawn - insufficient material"]

1. e4 {[%clk 0:03:01.9]} 1... c5 {[%clk 0:02:59.2]} 2. Nc3 {[%clk 0:03:02.2]}
2... Nc6 {[%clk 0:02:59.8]} 3. Bb5 {[%clk 0:03:02.1]} 3... Nd4 {[%clk
0:03:00.7]} 4. Nf3 {[%clk 0:03:02.2]} 4... Nxb5 {[%clk 0:03:01.1]} 5. Nxb5
{[%clk 0:03:02.8]} 5... d6 {[%clk 0:03:01.1]} 6. d4 {[%clk 0:03:02]} 6... cxd4
{[%clk 0:03:02.2]} 7. Qxd4 {[%clk 0:02:52.2]} 7... a6 {[%clk 0:02:52.7]} 8. Nc3
{[%clk 0:02:50.8]} 8... e5 {[%clk 0:02:48.5]} 9. Qd3 {[%clk 0:02:42.9]} 9... Be7
{[%clk 0:02:42.5]} 10. Nd5 {[%clk 0:01:51.5]} 10... Be6 {[%clk 0:02:39.4]} 11.
O-O {[%clk 0:01:42.1]} 11... Nf6 {[%clk 0:02:24.4]} 12. Nxe7 {[%clk 0:01:32.5]}
12... Qxe7 {[%clk 0:02:26.3]} 13. Bg5 {[%clk 0:01:32.9]} 13... O-O {[%clk
0:02:22]} 14. Bxf6 {[%clk 0:01:31.2]} 14... gxf6 {[%clk 0:01:23.3]} 15. Rad1
{[%clk 0:01:23.5]} 15... Rac8 {[%clk 0:01:12.6]} 16. b3 {[%clk 0:01:22.6]} 16...
Rc6 {[%clk 0:01:09.5]} 17. c4 {[%clk 0:01:18.3]} 17... Rfc8 {[%clk 0:01:05.1]}
18. Nh4 {[%clk 0:01:13.2]} 18... b5 {[%clk 0:00:54.4]} 19. cxb5 {[%clk
0:01:11.2]} 19... axb5 {[%clk 0:00:56.3]} 20. Qxb5 {[%clk 0:01:11.8]} 20... Rc2
{[%clk 0:00:53.8]} 21. a4 {[%clk 0:01:06.8]} 21... Qc7 {[%clk 0:00:44.5]} 22.
Rd3 {[%clk 0:01:01.8]} 22... Rc3 {[%clk 0:00:40.1]} 23. Rfd1 {[%clk 0:00:42.9]}
23... Bxb3 {[%clk 0:00:36.8]} 24. Nf5 {[%clk 0:00:15.1]} 24... Bxd1 {[%clk
0:00:30.9]} 25. Rxd1 {[%clk 0:00:16]} 25... Rc1 {[%clk 0:00:29.9]} 26. Rf1
{[%clk 0:00:13.9]} 26... Rxf1+ {[%clk 0:00:30]} 27. Qxf1 {[%clk 0:00:14]} 27...
Kf8 {[%clk 0:00:22]} 28. h4 {[%clk 0:00:12.7]} 28... Qc1 {[%clk 0:00:18.2]} 29.
Nxd6 {[%clk 0:00:12.4]} 29... Qxf1+ {[%clk 0:00:18.3]} 30. Kxf1 {[%clk
0:00:13.7]} 30... Ra8 {[%clk 0:00:16.9]} 31. Ke2 {[%clk 0:00:14.2]} 31... Rxa4
{[%clk 0:00:17.8]} 32. Kf3 {[%clk 0:00:15.5]} 32... Ra3+ {[%clk 0:00:18.1]} 33.
Kg4 {[%clk 0:00:16]} 33... Rd3 {[%clk 0:00:10]} 34. Nf5 {[%clk 0:00:16.1]} 34...
Rd2 {[%clk 0:00:11.2]} 35. Kg3 {[%clk 0:00:15.5]} 35... h5 {[%clk 0:00:10.3]}
36. f3 {[%clk 0:00:16.4]} 36... Kg8 {[%clk 0:00:07.7]} 37. Ne7+ {[%clk 0:00:15]}
37... Kg7 {[%clk 0:00:08.2]} 38. Nd5 {[%clk 0:00:16.2]} 38... f5 {[%clk
0:00:06.9]} 39. Ne7 {[%clk 0:00:13.8]} 39... fxe4 {[%clk 0:00:03.9]} 40. fxe4
{[%clk 0:00:15]} 40... Rd3+ {[%clk 0:00:05.3]} 41. Kf2 {[%clk 0:00:15.7]} 41...
Kf6 {[%clk 0:00:05.9]} 42. Nf5 {[%clk 0:00:16.3]} 42... Ra3 {[%clk 0:00:05.9]}
43. Ng3 {[%clk 0:00:17.1]} 43... Kg6 {[%clk 0:00:06.1]} 44. Nf5 {[%clk
0:00:18.3]} 44... f6 {[%clk 0:00:03.9]} 45. Ne7+ {[%clk 0:00:19.2]} 45... Kf7
{[%clk 0:00:04.7]} 46. Nf5 {[%clk 0:00:20.9]} 46... Ra4 {[%clk 0:00:03.6]} 47.
Kf3 {[%clk 0:00:21.5]} 47... Ra3+ {[%clk 0:00:05]} 48. Kf2 {[%clk 0:00:22.5]}
48... Rb3 {[%clk 0:00:05.3]} 49. Ng3 {[%clk 0:00:22.2]} 49... Ke6 {[%clk
0:00:04.7]} 50. Nxh5 {[%clk 0:00:22.7]} 50... Rb2+ {[%clk 0:00:04.2]} 51. Kf3
{[%clk 0:00:23.3]} 51... Rb3+ {[%clk 0:00:05.4]} 52. Kg4 {[%clk 0:00:16.3]}
52... Rb4 {[%clk 0:00:06.4]} 53. Kf3 {[%clk 0:00:16.2]} 53... Rb3+ {[%clk
0:00:06]} 54. Kg4 {[%clk 0:00:17.3]} 54... Rb4 {[%clk 0:00:07.3]} 55. Kf3 {[%clk
0:00:17.5]} 55... Rb3+ {[%clk 0:00:08.1]} 56. Kg4 {[%clk 0:00:18.7]} 56... Re3
{[%clk 0:00:07.8]} 57. Ng3 {[%clk 0:00:18]} 57... Rb3 {[%clk 0:00:07]} 58. h5
{[%clk 0:00:18.6]} 58... Rb8 {[%clk 0:00:07.8]} 59. Nf5 {[%clk 0:00:17.5]} 59...
Rg8+ {[%clk 0:00:08.1]} 60. Kh3 {[%clk 0:00:18]} 60... Rg5 {[%clk 0:00:07.6]}
61. g4 {[%clk 0:00:19]} 61... Rg8 {[%clk 0:00:06.4]} 62. Kh4 {[%clk 0:00:19.7]}
62... Rb8 {[%clk 0:00:06.5]} 63. h6 {[%clk 0:00:19.6]} 63... Kf7 {[%clk
0:00:07.4]} 64. Kh5 {[%clk 0:00:19.9]} 64... Rb1 {[%clk 0:00:08.2]} 65. Nd6+
{[%clk 0:00:20.4]} 65... Ke6 {[%clk 0:00:09]} 66. Kg6 {[%clk 0:00:19.4]} 66...
Kxd6 {[%clk 0:00:09]} 67. Kxf6 {[%clk 0:00:20.4]} 67... Rh1 {[%clk 0:00:06.9]}
68. Kg7 {[%clk 0:00:21.2]} 68... Rh4 {[%clk 0:00:04.1]} 69. g5 {[%clk
0:00:22.1]} 69... Rxe4 {[%clk 0:00:05.2]} 70. h7 {[%clk 0:00:21.7]} 70... Rh4
{[%clk 0:00:05.6]} 71. Kh8 {[%clk 0:00:22.7]} 71... e4 {[%clk 0:00:05.4]} 72. g6
{[%clk 0:00:24]} 72... e3 {[%clk 0:00:06.6]} 73. g7 {[%clk 0:00:25.2]} 73... e2
{[%clk 0:00:08.1]} 74. g8=Q {[%clk 0:00:25.4]} 74... e1=Q {[%clk 0:00:09.5]} 75.
Qd8+ {[%clk 0:00:26.4]} 75... Kc6 {[%clk 0:00:08.1]} 76. Qc8+ {[%clk 0:00:26.3]}
76... Kb5 {[%clk 0:00:07]} 77. Qb7+ {[%clk 0:00:26.1]} 77... Ka4 {[%clk
0:00:06.5]} 78. Qa6+ {[%clk 0:00:26.1]} 78... Kb3 {[%clk 0:00:06]} 79. Qb5+
{[%clk 0:00:22.9]} 79... Kc2 {[%clk 0:00:05]} 80. Qf5+ {[%clk 0:00:22.5]} 80...
Kb3 {[%clk 0:00:02.8]} 81. Qd5+ {[%clk 0:00:22.8]} 81... Kc2 {[%clk 0:00:03.8]}
82. Qf5+ {[%clk 0:00:23.4]} 82... Kd1 {[%clk 0:00:04.5]} 83. Qb1+ {[%clk
0:00:23.2]} 83... Kd2 {[%clk 0:00:05]} 84. Qxe1+ {[%clk 0:00:23.8]} 84... Kxe1
{[%clk 0:00:06.9]} 85. Kg8 {[%clk 0:00:25.2]} 85... Rxh7 {[%clk 0:00:08.1]} 86.
Kxh7 {[%clk 0:00:26]} 1/2-1/2

[Event "*** Titled Tuesday Blitz"]
[Site "Chess.com"]
[Date "2019.02.05"]
[Round "7"]
[White "Parhamov"]
[Black "HomayoonTofighi"]
[Result "1-0"]
[WhiteElo "2977"]
[BlackElo "2750"]
[TimeControl "180+2"]
[EndTime "14:43:59 PST"]
[Termination "Parhamov won by resignation"]

1. e4 {[%clk 0:02:58.4]} 1... e6 {[%clk 0:02:59.8]} 2. d4 {[%clk 0:02:58]} 2...
d5 {[%clk 0:02:59.9]} 3. e5 {[%clk 0:02:58]} 3... c5 {[%clk 0:03:01.5]} 4. c3
{[%clk 0:02:54.2]} 4... Nc6 {[%clk 0:03:02.8]} 5. Nf3 {[%clk 0:02:54.8]} 5...
Qb6 {[%clk 0:03:04.2]} 6. a3 {[%clk 0:02:55.3]} 6... Nh6 {[%clk 0:03:02.8]} 7.
Bd3 {[%clk 0:02:53.7]} 7... cxd4 {[%clk 0:03:02.5]} 8. O-O {[%clk 0:02:50.8]}
8... Bd7 {[%clk 0:02:48.2]} 9. b4 {[%clk 0:02:47.7]} 9... a6 {[%clk 0:02:41]}
10. Ra2 {[%clk 0:02:43.4]} 10... dxc3 {[%clk 0:02:37.6]} 11. Nxc3 {[%clk
0:02:40.6]} 11... Rc8 {[%clk 0:02:28.8]} 12. Na4 {[%clk 0:02:38.1]} 12... Qc7
{[%clk 0:02:28.7]} 13. Bxh6 {[%clk 0:02:29.6]} 13... gxh6 {[%clk 0:02:29.2]} 14.
Rc2 {[%clk 0:02:30.8]} 14... Bg7 {[%clk 0:02:27.8]} 15. Nc5 {[%clk 0:02:30.8]}
15... O-O {[%clk 0:02:22.8]} 16. Re1 {[%clk 0:02:25.8]} 16... Kh8 {[%clk
0:02:13.7]} 17. Rc1 {[%clk 0:02:20.7]} 17... Rg8 {[%clk 0:02:08.6]} 18. Bb1
{[%clk 0:02:17.1]} 18... Bf8 {[%clk 0:02:01.9]} 19. Qd3 {[%clk 0:02:15.2]} 19...
Rg7 {[%clk 0:01:59.9]} 20. Qe3 {[%clk 0:02:16.3]} 20... Rg8 {[%clk 0:01:50.6]}
21. Nd3 {[%clk 0:02:12.6]} 21... Qd8 {[%clk 0:01:47.6]} 22. Nf4 {[%clk
0:02:09.5]} 22... f6 {[%clk 0:01:40.4]} 23. Nh5 {[%clk 0:01:31.3]} 23... f5
{[%clk 0:01:37.2]} 24. h3 {[%clk 0:01:09.7]} 24... Be8 {[%clk 0:01:22.6]} 25.
Nf4 {[%clk 0:01:02.5]} 25... Bf7 {[%clk 0:01:23]} 26. Bxf5 {[%clk 0:01:01.1]}
26... exf5 {[%clk 0:01:19.8]} 27. e6 {[%clk 0:01:02.1]} 27... Be8 {[%clk
0:01:19.1]} 28. Rcd1 {[%clk 0:00:59]} 28... Qf6 {[%clk 0:01:14.7]} 29. Nxd5
{[%clk 0:00:55.5]} 29... Qg7 {[%clk 0:01:16.1]} 30. g3 {[%clk 0:00:56.1]} 30...
Ne7 {[%clk 0:01:09.8]} 31. Nh4 {[%clk 0:00:38]} 31... Qg5 {[%clk 0:01:04]} 32.
Qxg5 {[%clk 0:00:35]} 32... Rxg5 {[%clk 0:00:57]} 33. Nb6 {[%clk 0:00:22.8]}
33... Rc6 {[%clk 0:00:58.9]} 34. Nd7 {[%clk 0:00:23.8]} 34... Bg7 {[%clk
0:00:57.7]} 35. Ng2 {[%clk 0:00:21]} 35... Rc3 {[%clk 0:00:48.2]} 36. Nc5 {[%clk
0:00:19.8]} 36... Bf6 {[%clk 0:00:45.2]} 37. Rd8 {[%clk 0:00:20.4]} 37... Rg8
{[%clk 0:00:45.5]} 38. Nxb7 {[%clk 0:00:20.3]} 38... Rxa3 {[%clk 0:00:44.5]} 39.
Nd6 {[%clk 0:00:21.2]} 39... Bc6 {[%clk 0:00:44.5]} 40. Nf7+ {[%clk 0:00:19.3]}
40... Kg7 {[%clk 0:00:46.2]} 41. Nf4 {[%clk 0:00:20.7]} 41... Bf3 {[%clk
0:00:43.6]} 42. Rd7 {[%clk 0:00:21]} 42... h5 {[%clk 0:00:36.7]} 43. Nd6 {[%clk
0:00:21.3]} 43... Kh6 {[%clk 0:00:34.2]} 44. Rxe7 {[%clk 0:00:22]} 44... Bxe7
{[%clk 0:00:34.8]} 45. Nxf5+ {[%clk 0:00:23.3]} 45... Kg5 {[%clk 0:00:35.7]} 46.
Nxe7 {[%clk 0:00:24.4]} 46... Re8 {[%clk 0:00:34.5]} 47. Ned5 {[%clk 0:00:19.6]}
47... Bxd5 {[%clk 0:00:33.3]} 48. Nxd5 {[%clk 0:00:20.7]} 48... Kg6 {[%clk
0:00:35.2]} 49. Re5 {[%clk 0:00:18.9]} 49... h4 {[%clk 0:00:30.2]} 50. g4 {[%clk
0:00:20]} 50... Kg7 {[%clk 0:00:27.5]} 51. Kg2 {[%clk 0:00:21.1]} 51... Rd3
{[%clk 0:00:23.6]} 52. Nc7 {[%clk 0:00:15.6]} 52... Re7 {[%clk 0:00:23.5]} 53.
Nxa6 {[%clk 0:00:14.9]} 53... Kf6 {[%clk 0:00:23.4]} 54. Rf5+ {[%clk 0:00:16.2]}
54... Kg6 {[%clk 0:00:23.9]} 55. Nc5 {[%clk 0:00:17.6]} 55... Rd2 {[%clk
0:00:24.1]} 56. Re5 {[%clk 0:00:11.4]} 56... Rb2 {[%clk 0:00:22.8]} 57. Re4
{[%clk 0:00:11.9]} 57... Kf6 {[%clk 0:00:19]} 58. Nd7+ {[%clk 0:00:12.4]} 58...
Kg7 {[%clk 0:00:19.3]} 59. Nc5 {[%clk 0:00:08.9]} 59... Kf6 {[%clk 0:00:20.2]}
60. Kf3 {[%clk 0:00:10.2]} 60... Ra7 {[%clk 0:00:15.2]} 61. Rf4+ {[%clk
0:00:10.7]} 61... Kg6 {[%clk 0:00:15.8]} 62. Nd3 {[%clk 0:00:09.7]} 62... Rb3
{[%clk 0:00:15.3]} 63. Ke4 {[%clk 0:00:10.2]} 63... Re7 {[%clk 0:00:16]} 64.
Ne5+ {[%clk 0:00:10.5]} 64... Kg7 {[%clk 0:00:16.5]} 65. Kd5 {[%clk 0:00:08.8]}
65... Rxh3 {[%clk 0:00:13.8]} 66. Kd6 {[%clk 0:00:10.2]} 66... Re8 {[%clk
0:00:14.6]} 67. e7 {[%clk 0:00:08.8]} 67... Rh1 {[%clk 0:00:09.1]} 68. Kd7
{[%clk 0:00:09.2]} 68... Ra8 {[%clk 0:00:08.3]} 69. e8=Q {[%clk 0:00:08.1]}
69... Rd1+ {[%clk 0:00:09.3]} 70. Ke7 {[%clk 0:00:08.2]} 70... Rxe8+ {[%clk
0:00:09.5]} 71. Kxe8 {[%clk 0:00:09.5]} 71... h3 {[%clk 0:00:10.4]} 72. Nf3
{[%clk 0:00:10.5]} 72... Rf1 {[%clk 0:00:08.4]} 73. Nh2 {[%clk 0:00:04]} 73...
Rh1 {[%clk 0:00:09]} 74. Nf3 {[%clk 0:00:05.3]} 74... Rf1 {[%clk 0:00:10.7]} 75.
Nh2 {[%clk 0:00:06.7]} 75... Rh1 {[%clk 0:00:12]} 76. Rf7+ {[%clk 0:00:04.5]}
76... Kg6 {[%clk 0:00:10.2]} 77. Nf3 {[%clk 0:00:05.3]} 77... Rf1 {[%clk
0:00:11.6]} 78. Ne5+ {[%clk 0:00:06]} 78... Kg5 {[%clk 0:00:12.9]} 79. Rf5+
{[%clk 0:00:07.3]} 79... Kh6 {[%clk 0:00:13.1]} 80. Kf7 {[%clk 0:00:07.9]} 1-0